bitfinex-derivatives/quotes_ETHF0:USTF0_20250316
["timestamp","ask_amount","ask_price","bid_price","bid_amount"]
[1742166166055,0.85216,1877.6,1877.5,0.85218]
[1742166166354,0.6762,1877.7,1877.6,0.85213]
[1742166166554,0.6762,1877.7,1877.6,4.05993]
[1742166166963,2.0651,1877.7,1877.6,44.85993]
[1742166167254,0.6762,1877.7,1877.6,44.85993]
[1742166167462,2.20105,1878.0,1877.9,0.85199]
[1742166168054,2.20105,1878.0,1877.9,42.99629]
[1742166168254,3.2078,1878.5,1877.9,42.1443]
[1742166168551,2.783,1878.6,1878.0,8.0881]
[1742166168754,0.85188,1878.2,1878.1,1.3443]
[1742166169562,0.85188,1878.2,1878.1,42.1443]
[1742166169959,0.85188,1878.2,1878.1,40.8]
[1742166170763,0.85199,1877.9,1877.8,0.00798424]
[1742166171661,0.85204,1877.8,1877.7,3.2078]
[1742166171962,3.00834,1877.8,1877.7,44.0078]
[1742166172466,2.1563,1877.8,1877.7,44.85988]
[1742166172966,3.00834,1877.8,1877.7,44.85988]
[1742166173762,3.00834,1877.8,1877.7,44.0078]
[1742166173969,2.1563,1877.8,1877.7,44.85988]
[1742166174268,1.4506,1877.8,1877.7,44.85988]
[1742166174670,0.00798424,1877.9,1877.8,0.85204]
[1742166174864,0.00798424,1877.9,1877.8,2.20834]
[1742166175263,1.40228424,1877.9,1877.8,2.20834]
[1742166175463,0.00798424,1877.9,1877.8,2.20834]
[1742166175859,0.00798424,1877.9,1877.8,43.00834]
[1742166177668,0.00798424,1877.9,1877.8,46.55134]
[1742166178874,0.00798424,1877.9,1877.8,43.00834]
[1742166179268,1.37398424,1877.9,1877.8,43.00834]
[1742166181460,2.22597424,1877.9,1877.8,42.1563]
[1742166181774,2.22597424,1877.9,1877.8,40.8]
[1742166182461,5.76497424,1877.9,1877.8,40.8]
[1742166182665,8.26497424,1877.9,1877.8,40.8]
[1742166184472,5.76497424,1877.9,1877.8,40.8]
[1742166186069,5.76397424,1877.9,1877.8,40.8]
[1742166186776,8.26397424,1877.9,1877.8,40.8]
[1742166188578,0.85208,1877.7,1877.6,0.00798424]
[1742166188770,4.05988,1877.7,1877.6,0.00798424]
[1742166189170,5.42258,1877.7,1877.6,0.00798424]
[1742166189371,2.13048,1877.5,1877.1,3.2078]
[1742166189681,0.85231,1877.2,1877.1,3.2078]
[1742166190074,0.85231,1877.2,1877.1,40.8]
[1742166191177,0.85231,1877.2,1877.1,42.234]
[1742166192277,1.3627,1877.3,1877.2,0.85231]
[1742166192481,0.7151,1877.4,1877.3,0.85227]
[1742166192983,0.7151,1877.4,1877.3,43.04187]
[1742166193177,2.97002,1877.4,1877.3,42.1896]
[1742166193783,2.97002,1877.4,1877.3,43.04187]
[1742166193976,0.6859,1877.7,1877.4,0.8522]
[1742166194181,2.0976,1877.7,1877.5,1.3896]
[1742166194386,0.85213,1877.6,1877.5,1.3896]
[1742166194673,2.25483,1877.6,1877.5,1.3896]
[1742166194879,1.4027,1877.6,1877.5,2.24178]
[1742166195075,2.25483,1877.6,1877.5,2.24178]
[1742166195280,2.25483,1877.6,1877.5,43.04178]
[1742166196283,2.25483,1877.6,1877.5,42.1896]
[1742166196478,5.46263,1877.6,1877.5,40.8]
[1742166196785,2.25483,1877.6,1877.5,40.8]
[1742166205382,4.75483,1877.6,1877.5,40.8]
[1742166205589,7.96263,1877.6,1877.5,40.8]
[1742166205897,0.85236,1877.1,1877.0,0.00798424]
[1742166206895,2.29696,1877.1,1877.0,40.80798424]
[1742166210585,2.29696,1877.1,1877.0,42.26328424]
[1742166215302,2.29696,1877.1,1877.0,40.80798424]
[1742166218104,0.85258,1876.6,1876.5,3.2078]
[1742166218296,0.85258,1876.6,1876.5,4.6024]
[1742166218497,6.0088,1876.8,1876.3,3.2078]
[1742166218801,0.85267,1876.4,1876.3,3.2078]
[1742166219107,0.85267,1876.4,1876.3,44.0078]
[1742166219406,1.52747,1876.4,1876.3,44.0078]
[1742166220306,0.85272,1876.3,1876.2,0.00798424]
[1742166220501,2.13218,1876.0,1875.5,3.2078]
[1742166220703,0.85307,1875.6,1875.5,3.2078]
[1742166221402,1.3558,1875.8,1875.5,44.0078]
[1742166221601,1.3558,1875.8,1875.5,44.86087]
[1742166221801,1.3558,1875.8,1875.5,44.86885424]
[1742166222005,0.85304,1875.6,1875.5,44.86885424]
[1742166222204,0.85304,1875.6,1875.5,44.01578424]
[1742166222907,0.85301,1875.7,1875.5,44.86883424]
[1742166223110,0.85304,1875.6,1875.5,44.86883424]
[1742166223411,0.85304,1875.6,1875.5,44.01578424]
[1742166225536,0.85304,1875.6,1875.5,40.80798424]
[1742166225537,4.38404,1875.6,1875.5,40.80798424]
[1742166225741,6.88404,1875.6,1875.5,40.80798424]
[1742166226335,8.31894,1875.6,1875.5,40.80798424]
[1742166226537,5.81894,1875.6,1875.5,40.80798424]
[1742166226836,8.31894,1875.6,1875.5,40.80798424]
[1742166227538,5.81894,1875.6,1875.5,40.80798424]
[1742166227927,8.31894,1875.6,1875.5,40.80798424]
[1742166229126,5.81894,1875.6,1875.5,40.80798424]
[1742166229439,8.31894,1875.6,1875.5,40.80798424]
[1742166229732,14.18894,1875.6,1875.5,40.80798424]
[1742166231734,11.68894,1875.6,1875.5,40.80798424]
[1742166234033,14.18894,1875.6,1874.6,3.2078]
[1742166234237,0.85345,1874.7,1874.6,3.2078]
[1742166234427,0.85342,1874.8,1874.6,4.06129]
[1742166234832,2.111,1874.9,1874.6,3.2078]
[1742166235034,0.85344,1874.8,1874.7,40.8]
[1742166235634,2.23754,1874.8,1874.7,40.8]
[1742166235829,5.44534,1874.8,1874.7,40.8]
[1742166237131,2.23754,1874.8,1874.7,40.8]
[1742166237334,5.44534,1874.8,1874.7,40.8]
[1742166237639,2.23754,1874.8,1874.7,40.8]
[1742166239136,2.23754,1874.8,1874.7,42.228]
[1742166241333,2.23754,1874.8,1874.7,40.8]
[1742166241740,2.23754,1874.8,1874.7,42.25]
[1742166242737,2.23754,1874.8,1874.7,40.8]
[1742166243040,5.44534,1874.8,1874.7,40.8]
[1742166243839,0.85345,1874.7,1874.6,0.00798424]
[1742166244044,0.854,1873.5,1873.4,3.2078]
[1742166244236,0.854,1873.5,1872.8,9.556]
[1742166244237,0.85411,1873.3,1873.1,4.07946]
[1742166244444,0.85413,1873.2,1873.1,3.2253]
[1742166244643,0.85413,1873.2,1872.9,3.2078]
[1742166244945,0.85413,1873.2,1873.1,40.8]
[1742166245142,0.86213662,1873.2,1873.1,40.8]
[1742166245950,2.25013662,1873.2,1873.1,40.8]
[1742166246340,7.95793662,1873.2,1873.1,40.8]
[1742166246643,0.85422,1873.0,1872.9,0.00539029]
[1742166246946,7.65502,1873.0,1872.9,0.00539029]
[1742166247135,10.15502,1873.0,1872.9,0.00539029]
[1742166247547,10.15502,1873.0,1872.9,40.8]
[1742166247548,11.57112,1873.0,1872.9,40.8]
[1742166247746,0.85422,1873.0,1872.9,40.8]
[1742166247941,0.6682,1873.1,1872.9,41.65423]
[1742166247942,0.85421,1873.1,1872.9,41.65423]
[1742166248248,0.85422,1873.0,1872.9,44.0078]
[1742166248448,0.85422,1873.0,1872.9,44.86207]
[1742166248647,0.85422,1873.0,1872.9,44.0078]
[1742166249646,1.42410662,1873.2,1872.9,44.0078]
[1742166250151,0.8542,1873.1,1873.0,0.8542]
[1742166250548,0.85431,1872.8,1872.7,0.87174]
[1742166250946,1.3318,1873.0,1872.7,40.8174]
[1742166251149,0.00800662,1873.2,1872.8,3.2078]
[1742166251344,0.85418,1873.1,1872.9,0.88664]
[1742166251542,0.85421,1873.1,1873.0,0.85422]
[1742166251743,0.00800662,1873.2,1872.9,0.88662]
[1742166252052,0.85422,1873.0,1872.9,0.0324]
[1742166252254,0.85421,1873.1,1873.0,0.85421]
[1742166252443,0.85422,1873.0,1872.9,0.88667]
[1742166252643,0.85422,1873.0,1872.9,41.68667]
[1742166253152,0.85422,1873.0,1872.9,41.68664]
[1742166253354,0.85421,1873.1,1873.0,0.85421]
[1742166253651,0.00800662,1873.2,1873.1,0.85418]
[1742166253853,0.86213662,1873.2,1873.1,0.85418]
[1742166254052,0.86213662,1873.2,1873.1,41.65418]
[1742166254543,0.00800662,1873.2,1873.1,41.65418]
[1742166255052,0.86213662,1873.2,1873.1,41.65418]
[1742166255552,0.86213662,1873.2,1873.1,40.8]
[1742166256443,7.67393662,1873.2,1873.1,40.8]
[1742166256748,9.01653662,1873.2,1873.1,40.8]
[1742166257050,14.88653662,1873.2,1873.1,40.8]
[1742166259447,11.67873662,1873.2,1873.1,40.8]
[1742166260846,11.67273662,1873.2,1873.1,40.8]
[1742166261951,5.80273662,1873.2,1873.1,40.8]
[1742166263345,0.86213662,1873.2,1873.1,40.8]
[1742166263551,4.46413662,1873.2,1873.1,40.8]
[1742166263955,8.99023662,1873.2,1873.1,40.8]
[1742166264261,12.16313662,1873.2,1873.1,40.8]
[1742166265155,2.13561,1873.0,1872.6,1.445]
[1742166265461,0.85436,1872.7,1872.6,1.445]
[1742166266257,2.23466,1872.7,1872.6,42.245]
[1742166267355,2.23466,1872.7,1872.6,40.8]
[1742166267657,0.85491,1871.5,1871.3,4.06277]
[1742166267953,2.1368,1872.0,1871.6,0.85485]
[1742166267954,3.642,1872.0,1871.6,0.85485]
[1742166268158,0.85477,1871.8,1871.7,3.2078]
[1742166268555,0.85477,1871.8,1871.7,49.35576284]
[1742166268957,2.28927,1871.8,1871.7,49.35576284]
[1742166269159,0.85477,1871.8,1871.7,49.35576284]
[1742166269361,2.28927,1871.8,1871.7,49.35576284]
[1742166269760,1.55905662,1871.9,1871.7,50.21053284]
[1742166269961,0.86275662,1871.9,1871.8,5.34796284]
[1742166270165,0.00800662,1871.9,1871.8,6.20273284]
[1742166270758,0.00800662,1871.9,1871.8,47.00273284]
[1742166271060,0.85452,1872.4,1872.3,0.85452]
[1742166271258,1.4345,1872.5,1872.2,4.06238]
[1742166271259,0.85454,1872.3,1872.2,4.06238]
[1742166271658,0.85454,1872.3,1872.2,8.70734284]
[1742166271854,1.4345,1872.5,1872.2,48.65276284]
[1742166272063,0.85446,1872.5,1872.4,3.2078]
[1742166272269,0.86246662,1872.5,1872.4,7.85276284]
[1742166272656,0.86246662,1872.5,1872.4,48.65276284]
[1742166273272,0.86246662,1872.5,1872.4,49.50726284]
[1742166273458,0.86246662,1872.5,1872.4,48.65276284]
[1742166280968,0.86246662,1872.5,1872.4,45.44496284]
[1742166281473,5.87136662,1872.5,1872.4,45.44496284]
[1742166282272,0.85454,1872.3,1872.2,0.00800662]
[1742166282460,0.85477,1871.8,1871.7,3.2078]
[1742166282663,0.85477,1871.8,1871.7,7.85276284]
[1742166283468,0.85477,1871.8,1871.7,45.44496284]
[1742166284366,0.85477,1871.8,1871.2,3.2078]
[1742166284367,0.855,1871.3,1871.2,3.2078]
[1742166284575,0.85508,1871.2,1871.0,0.8551]
[1742166284870,0.00800662,1871.4,1871.3,0.85496]
[1742166285072,0.00800662,1871.4,1871.3,4.06276]
[1742166285266,0.00800662,1871.4,1871.3,8.70772284]
[1742166285471,0.00800662,1871.4,1871.3,49.50772284]
[1742166286071,4.5238,1871.8,1871.7,0.85482]
[1742166286267,0.8548,1871.8,1871.7,3.2078]
[1742166286574,0.85476,1871.9,1871.8,0.85477]
[1742166286873,0.85476,1871.9,1871.8,46.29970284]
[1742166286874,0.85472,1871.9,1871.8,46.29970284]
[1742166287263,0.85472,1871.9,1871.8,45.44496284]
[1742166287760,2.30932,1871.9,1871.8,45.44496284]
[1742166288967,2.30932,1871.9,1871.8,46.77276284]
[1742166289778,0.85451,1872.4,1872.0,2.1367]
[1742166289978,0.85448,1872.5,1872.3,3.2078]
[1742166290175,0.85448,1872.5,1872.4,1.3179]
[1742166290471,0.85448,1872.5,1872.4,5.96286284]
[1742166290669,0.85448,1872.5,1872.4,46.76286284]
[1742166291071,0.85448,1872.5,1872.4,47.61736284]
[1742166291272,0.85448,1872.5,1872.4,46.76286284]
[1742166293275,0.85448,1872.5,1872.4,47.61736284]
[1742166293476,0.85448,1872.5,1872.4,46.76286284]
[1742166295686,0.85448,1872.5,1872.4,47.61736284]
[1742166295981,1.37260662,1872.6,1872.5,0.85445]
[1742166295982,0.00800662,1872.6,1872.5,0.85445]
[1742166296286,0.00800662,1872.6,1872.5,10.11631284]
[1742166297678,0.86240662,1872.6,1872.5,50.91631284]
[1742166297878,0.00800662,1872.6,1872.5,50.91631284]
[1742166298382,0.00800662,1872.6,1872.5,54.59231284]
[1742166299273,0.85427,1872.9,1872.8,0.85427]
[1742166299586,0.85427,1872.9,1872.8,4.06207]
[1742166299886,0.85427,1872.9,1872.8,8.70703284]
[1742166300283,0.85427,1872.9,1872.8,49.50703284]
[1742166300879,0.00800662,1873.0,1872.8,49.50703284]
[1742166300880,0.00800662,1873.0,1872.9,0.85427]
[1742166301079,0.00800662,1873.0,1872.9,6.90753284]
[1742166301477,0.00800662,1873.0,1872.9,47.70753284]
[1742166301782,14.88556,1873.8,1873.0,2.13553]
[1742166301977,0.85407,1873.4,1873.3,3.2078]
[1742166302179,0.85407,1873.4,1873.3,4.6227]
[1742166302380,0.85407,1873.4,1873.3,9.26766284]
[1742166302689,0.85407,1873.4,1873.3,10.12175284]
[1742166302885,0.85407,1873.4,1873.3,9.26766284]
[1742166303274,2.19767,1873.4,1873.3,9.26766284]
[1742166303491,0.85422,1873.0,1872.9,40.8]
[1742166303987,0.85422,1873.0,1872.9,45.76486284]
[1742166304190,0.85422,1873.0,1872.9,46.61913284]
[1742166304390,0.85422,1873.0,1872.9,45.76486284]
[1742166307482,0.85422,1873.0,1872.9,46.61913284]
[1742166308093,1.3436,1873.1,1872.9,46.61913284]
[1742166308292,1.3436,1873.1,1873.0,8.93258284]
[1742166308493,2.19778,1873.1,1873.0,8.93258284]
[1742166308691,0.6919,1873.3,1873.0,8.07836284]
[1742166308898,2.9691,1873.3,1873.2,0.85413]
[1742166309101,2.9691,1873.3,1873.2,3.2078]
[1742166309295,2.9691,1873.3,1873.2,8.07836284]
[1742166309995,2.9691,1873.3,1873.2,4.87056284]
[1742166310492,2.9691,1873.3,1873.2,45.67056284]
[1742166310692,2.9691,1873.3,1873.2,40.8]
[1742166311500,2.9691,1873.3,1873.2,45.20409284]
[1742166312097,2.115,1873.3,1873.2,48.41189284]
[1742166312403,3.66700662,1873.5,1873.4,0.85404]
[1742166312404,0.00800662,1873.5,1873.4,0.85404]
[1742166312711,0.86199662,1873.5,1873.4,0.85404]
[1742166313006,0.86199662,1873.5,1873.4,7.61180284]
[1742166313200,0.00800662,1873.5,1873.4,7.61180284]
[1742166314011,1.39760662,1873.5,1873.4,7.61180284]
[1742166314902,1.39760662,1873.5,1873.4,48.41180284]
[1742166315605,2.25159662,1873.5,1873.4,48.41180284]
[1742166315805,1.39760662,1873.5,1873.4,48.41180284]
[1742166316309,2.25159662,1873.5,1873.4,47.55776284]
[1742166316604,2.25159662,1873.5,1873.4,48.41180284]
[1742166316803,0.00800662,1873.5,1873.4,48.41180284]
[1742166316999,0.00800662,1873.5,1873.4,49.09620284]
[1742166317703,0.00800662,1873.5,1873.4,49.75570284]
[1742166318101,0.00800662,1873.5,1873.4,52.25570284]
[1742166318609,0.00800662,1873.5,1873.4,49.75570284]
[1742166319008,0.86199662,1873.5,1873.4,48.41180284]
[1742166320406,0.00800662,1873.5,1873.4,48.41180284]
[1742166320912,0.86199662,1873.5,1873.4,47.55776284]
[1742166321213,1.55059662,1873.5,1873.4,47.55776284]
[1742166321701,1.55059662,1873.5,1873.4,49.83760284]
[1742166322305,0.69660662,1873.5,1873.4,49.83760284]
[1742166322614,0.00800662,1873.5,1873.4,49.83760284]
[1742166323111,0.00800662,1873.5,1873.4,48.98356284]
[1742166323302,0.00800662,1873.5,1873.4,49.83760284]
[1742166323503,0.86199662,1873.5,1873.4,48.98356284]
[1742166323703,0.86199662,1873.5,1873.4,47.55776284]
[1742166323902,1.55639662,1873.5,1873.4,47.55776284]
[1742166326209,0.70240662,1873.5,1873.4,47.55776284]
[1742166326514,0.00800662,1873.5,1873.4,48.87756284]
[1742166327114,0.00800662,1873.5,1873.4,49.73160284]
[1742166327312,0.86199662,1873.5,1873.4,49.73160284]
[1742166327514,2.29239662,1873.5,1873.4,49.73160284]
[1742166328405,2.29239662,1873.5,1873.4,48.87756284]
[1742166328611,2.29239662,1873.5,1873.4,49.73160284]
[1742166330614,1.43840662,1873.5,1873.4,49.73160284]
[1742166330818,2.29239662,1873.5,1873.4,49.73160284]
[1742166331209,2.29239662,1873.5,1873.4,48.87756284]
[1742166331511,0.00800662,1873.5,1873.4,49.73160284]
[1742166332014,0.00800662,1873.5,1873.4,55.87660284]
[1742166333122,2.13412,1874.3,1873.6,2.13483]
[1742166333415,0.85377,1874.0,1873.9,4.06159]
[1742166333819,0.85377,1874.0,1873.9,45.64167284]
[1742166334013,0.85377,1874.0,1873.9,44.78786284]
[1742166335817,0.85377,1874.0,1873.9,45.64167284]
[1742166336322,2.23377,1874.0,1873.9,45.64167284]
[1742166336521,2.23377,1874.0,1873.9,44.78786284]
[1742166337024,2.23377,1874.0,1873.9,45.64167284]
[1742166337521,1e-08,1874.0,1873.9,45.64167284]
[1742166337819,0.86175662,1874.1,1874.0,0.85377]
[1742166338024,0.86175662,1874.1,1874.0,1.63383284]
[1742166338522,0.85369,1874.2,1874.0,0.78006284]
[1742166338818,3.632,1874.6,1874.1,3.98786284]
[1742166338819,2.8509,1874.6,1874.1,3.98786284]
[1742166339009,0.85366,1874.3,1874.1,5.34556284]
[1742166339329,0.6832,1874.5,1874.4,0.85358]
[1742166339621,0.6832,1874.5,1874.4,4.84144284]
[1742166339817,0.00533774,1874.6,1874.5,0.85354]
[1742166340018,0.00533774,1874.6,1874.5,1.63360284]
[1742166340522,0.00533774,1874.6,1874.5,2.98800284]
[1742166341118,0.00533774,1874.6,1874.5,43.78800284]
[1742166343220,0.85882774,1874.6,1874.5,41.58006284]
[1742166344826,0.85882774,1874.6,1874.5,40.8]
[1742166345928,4.49182774,1874.6,1874.5,40.8]
[1742166346123,0.85368,1874.2,1874.1,3.2078]
[1742166346518,0.85368,1874.2,1874.1,3.98786284]
[1742166347022,2.31168,1874.2,1874.1,44.78786284]
[1742166348017,2.31168,1874.2,1874.1,41.58006284]
[1742166349717,2.31168,1874.2,1874.1,42.91556284]
[1742166350725,0.85368,1874.2,1874.1,43.76928284]
[1742166350932,0.85368,1874.2,1874.1,43.76926284]
[1742166351122,0.85368,1874.2,1874.1,42.91556284]
[1742166351827,1.55586,1874.3,1874.1,43.76928284]
[1742166352137,1.55586,1874.3,1874.2,2.16986284]
[1742166352523,1.55586,1874.3,1874.2,42.96986284]
[1742166353422,0.7022,1874.3,1874.2,47.03134284]
[1742166353614,1.55583,1874.3,1874.2,46.17766284]
[1742166354522,1.55583,1874.3,1874.2,41.58006284]
[1742166354922,1.55583,1874.3,1874.2,40.8]
[1742166355323,1.55583,1874.3,1874.2,41.58006284]
[1742166357623,0.7022,1874.3,1874.2,45.64154284]
[1742166357824,1.55583,1874.3,1874.2,45.64154284]
[1742166358430,0.7022,1874.3,1874.2,45.64154284]
[1742166360329,0.00533774,1874.6,1874.5,0.85354]
[1742166360536,0.85354,1874.5,1874.4,3.2078]
[1742166360735,0.85354,1874.5,1874.4,4.6359]
[1742166360934,0.85354,1874.5,1874.4,5.41596284]
[1742166361434,0.85354,1874.5,1874.4,6.26954284]
[1742166361630,0.85354,1874.5,1874.4,5.41596284]
[1742166361932,0.85354,1874.5,1874.4,2.20816284]
[1742166365629,0.85354,1874.5,1874.4,0.78006284]
[1742166365831,0.85363,1874.3,1874.2,40.8]
[1742166366537,2.94063,1874.3,1874.2,40.8]
[1742166367331,2.94063,1874.3,1874.2,41.58006284]
[1742166367930,2.94063,1874.3,1874.2,42.1833]
[1742166368235,1.51933,1874.3,1874.2,42.1833]
[1742166368537,0.85363,1874.3,1874.2,44.46835]
[1742166369536,0.85363,1874.3,1874.2,42.1833]
[1742166372737,0.85363,1874.3,1874.2,40.8]
[1742166376228,4.44663,1874.3,1874.2,41.58006284]
[1742166376442,4.44663,1874.3,1874.2,40.8]
[1742166377532,7.65443,1874.3,1874.2,40.8]
[1742166378050,4.44663,1874.3,1874.2,40.8]
[1742166378343,7.65443,1874.3,1874.2,40.8]
[1742166378839,0.85381,1873.9,1873.8,0.00800662]
[1742166379029,0.85399,1873.5,1873.4,4.6274]
[1742166379436,0.85399,1873.5,1873.4,5.40746284]
[1742166379832,0.85399,1873.5,1873.4,44.0078]
[1742166380435,2.30049,1873.5,1873.4,40.8]
[1742166380936,0.85404,1873.4,1873.3,0.00800662]
[1742166381234,5.3409,1873.4,1872.6,20.70899158]
[1742166381436,0.85431,1872.8,1872.7,18.77265611]
[1742166381641,0.85431,1872.8,1872.7,17.99259327]
[1742166381941,6.56211,1872.8,1872.7,40.8]
[1742166382149,8.01451,1872.8,1872.7,40.8]
[1742166382537,0.85436,1872.7,1872.6,6.62e-06]
[1742166382836,4.80676,1872.7,1872.6,6.62e-06]
[1742166383036,10.67676,1872.7,1872.6,6.62e-06]
[1742166383450,10.67676,1872.7,1872.6,40.80000662]
[1742166383735,7.3224,1872.7,1872.1,1.4254]
[1742166383937,3.21580662,1872.8,1872.2,4.66426284]
[1742166384138,0.00800662,1872.8,1872.6,3.2078]
[1742166384337,0.00800662,1872.8,1872.7,1.4052]
[1742166384338,0.86231662,1872.8,1872.7,1.4052]
[1742166384543,0.00800662,1872.8,1872.7,42.2052]
[1742166384739,0.00800662,1872.8,1872.7,42.98526284]
[1742166385042,0.86231662,1872.8,1872.7,42.98526284]
[1742166385345,0.86231662,1872.8,1872.7,42.2052]
[1742166385642,5.38991662,1872.8,1872.7,42.2052]
[1742166385843,6.09111662,1872.8,1872.7,42.2052]
[1742166386136,0.85436,1872.7,1872.6,0.00800662]
[1742166386340,8.04416,1872.7,1872.6,0.00800662]
[1742166386530,11.25196,1872.7,1872.6,0.00800662]
[1742166386733,8.04416,1872.7,1872.6,40.80800662]
[1742166387137,1.37640662,1872.8,1872.6,41.58806946]
[1742166387138,1.56355662,1872.8,1872.6,41.58806946]
[1742166387337,1.56355662,1872.8,1872.7,2.15996284]
[1742166387940,1.56355662,1872.8,1872.7,42.95996284]
[1742166388442,0.86235662,1872.8,1872.7,42.95996284]
[1742166390132,4.07015662,1872.8,1872.7,40.8]
[1742166390443,0.86235662,1872.8,1872.7,40.8]
[1742166390635,0.86235662,1872.8,1872.7,42.154]
[1742166390835,4.07015662,1872.8,1872.7,42.154]
[1742166391247,6.57015662,1872.8,1872.7,40.8]
[1742166391447,13.11375662,1872.8,1872.7,40.8]
[1742166391645,13.11375662,1872.8,1872.6,6.62e-06]
[1742166391646,0.85436,1872.7,1872.6,6.62e-06]
[1742166391838,12.48026,1872.7,1872.6,6.62e-06]
[1742166392033,14.98026,1872.7,1872.2,1.354]
[1742166392338,0.85454,1872.3,1872.2,1.354]
[1742166392544,0.85472,1871.9,1871.8,0.6616]
[1742166392746,0.85472,1871.9,1871.8,2.0156]
[1742166392945,0.85472,1871.9,1871.8,2.79566284]
[1742166393742,0.85472,1871.9,1871.8,2.0156]
[1742166393942,0.85472,1871.9,1871.8,43.59566284]
[1742166394147,5.3097,1872.2,1871.8,43.59566284]
[1742166394348,2.1019,1872.2,1871.9,2.14746284]
[1742166394650,0.85472,1872.0,1871.9,0.78006284]
[1742166394951,0.85472,1872.0,1871.8,42.31637]
[1742166395136,0.85472,1872.0,1871.9,0.78006284]
[1742166395948,3.663,1872.3,1871.9,3.98786284]
[1742166396145,0.85463,1872.1,1872.0,0.78006284]
[1742166396541,0.85463,1872.1,1872.0,41.58006284]
[1742166398245,0.85463,1872.1,1872.0,40.8]
[1742166398555,0.85463,1872.1,1872.0,41.58006284]
[1742166398854,2.28663,1872.1,1872.0,41.58006284]
[1742166399550,8.15663,1872.1,1872.0,40.8]
[1742166399849,0.85477,1871.8,1871.7,0.00800662]
[1742166400049,7.72457,1871.8,1871.7,0.00800662]
[1742166400553,7.72457,1871.8,1871.7,0.78806946]
[1742166400748,3.662,1871.8,1871.7,42.44288946]
[1742166400952,0.85477,1871.8,1871.7,41.58806946]
[1742166403852,0.85476,1871.9,1871.7,42.44288946]
[1742166404153,0.85472,1871.9,1871.8,0.78006284]
[1742166406648,0.85472,1871.9,1871.8,1.63483284]
[1742166407050,0.85477,1871.8,1871.7,44.01580662]
[1742166407554,0.85477,1871.8,1871.7,44.79586946]
[1742166408056,0.85477,1871.8,1871.7,40.80800662]
[1742166408446,2.22477,1871.8,1871.7,40.80800662]
[1742166409946,0.85477,1871.8,1871.7,41.58806946]
[1742166410452,0.85476,1871.9,1871.7,41.58806946]
[1742166410651,0.85476,1871.9,1871.8,2.82186284]
[1742166411156,0.85476,1871.9,1871.8,44.47663284]
[1742166411352,0.85476,1871.9,1871.8,45.14183284]
[1742166412165,9.0778,1872.3,1871.8,44.28706284]
[1742166412351,3.653,1872.2,1871.9,2.22506284]
[1742166412551,0.85466,1872.1,1872.0,1.445]
[1742166412752,0.85466,1872.1,1872.0,2.22506284]
[1742166415158,0.85466,1872.1,1872.0,1.445]
[1742166416262,0.85472,1871.9,1871.8,40.8]
[1742166416464,4.50372,1871.9,1871.8,40.8]
[1742166416762,4.50372,1871.9,1871.8,41.58006284]
[1742166417762,5.84362,1871.9,1871.8,43.01306284]
[1742166418155,5.84362,1871.9,1871.8,41.58006284]
[1742166418351,4.50372,1871.9,1871.8,41.58006284]
[1742166418562,4.50372,1871.9,1871.8,43.01306284]
[1742166420061,0.85472,1871.9,1871.8,43.01306284]
[1742166421165,2.27512,1871.9,1871.8,43.01306284]
[1742166422462,2.27512,1871.9,1871.8,41.58006284]
[1742166422765,13.85292,1871.9,1871.8,39.74363]
[1742166422968,0.85477,1871.8,1871.7,0.00800662]
[1742166423163,2.27517,1871.8,1871.7,6.62e-06]
[1742166423469,4.77517,1871.8,1871.7,6.62e-06]
[1742166423659,5.47047,1871.8,1871.7,6.62e-06]
[1742166423861,5.47047,1871.8,1871.7,40.80000662]
[1742166425161,0.855,1871.3,1871.2,1.3688]
[1742166425364,7.7088,1871.3,1871.2,1.3688]
[1742166425565,6.8538,1871.3,1870.7,3.2078]
[1742166425869,0.85532,1870.6,1870.5,1.3688]
[1742166426367,0.85532,1870.6,1870.5,42.94886284]
[1742166426559,0.86330662,1870.7,1870.6,0.85532]
[1742166426867,0.00800662,1870.7,1870.6,1.63538284]
[1742166427973,0.86327662,1870.7,1870.6,0.78006284]
[1742166428461,0.86327662,1870.7,1870.6,41.58006284]
[1742166429468,0.00800662,1870.7,1870.6,42.43538284]
[1742166429770,0.00800662,1870.7,1870.6,45.64318284]
[1742166430467,0.00800662,1870.7,1870.6,48.14318284]
[1742166430764,0.8552,1870.9,1870.8,0.85522]
[1742166430960,0.8552,1870.9,1870.8,4.06302]
[1742166431164,0.8552,1870.9,1870.8,4.84308284]
[1742166431572,0.8552,1870.9,1870.8,45.64308284]
[1742166431756,0.00800662,1871.0,1870.8,44.78786284]
[1742166432065,0.00800662,1871.0,1870.9,1.63524284]
[1742166432371,4.3637,1871.5,1870.9,0.78006284]
[1742166432665,4.3637,1871.5,1871.3,40.8]
[1742166432873,0.85494,1871.5,1871.4,0.85494]
[1742166433170,0.85489,1871.6,1871.5,0.85491]
[1742166433357,0.85481,1871.8,1871.5,3.98786284]
[1742166433560,0.00800662,1871.6,1871.5,4.06271]
[1742166433757,0.00800662,1871.6,1871.5,44.87071662]
[1742166433960,0.85478,1871.8,1871.7,0.85479]
[1742166434164,0.85476,1871.9,1871.8,0.85477]
[1742166434360,0.85471,1872.0,1871.9,0.85472]
[1742166434562,0.85471,1872.0,1871.9,41.58006284]
[1742166436373,2.20781,1872.0,1871.9,41.58006284]
[1742166437166,5.86681,1872.0,1871.9,41.58006284]
[1742166438366,4.51371,1872.0,1871.9,41.58006284]
[1742166439374,0.85471,1872.0,1871.9,41.58006284]
[1742166439873,0.85471,1872.0,1871.9,44.30536284]
[1742166441171,0.85471,1872.0,1871.9,43.62206284]
[1742166441672,0.85471,1872.0,1871.9,42.90786284]
[1742166442574,0.86267662,1872.1,1871.9,46.11566284]
[1742166442770,0.86266662,1872.1,1872.0,0.78006284]
[1742166443176,0.00800662,1872.1,1872.0,1.63474284]
[1742166444172,0.85437,1872.7,1872.1,2.13659]
[1742166444470,2.1357,1872.9,1872.4,3.2078]
[1742166444673,2.1357,1872.9,1872.5,40.8]